lending/lending_fUSD_20240507
["ID","MTS","AMOUNT","RATE_DAILY","PERIOD"]
[326541410,1715100658353,-156.41043642,0.00016039,2]
[326541413,1715100658384,-2000.0,0.0001604,2]
[326541415,1715100658410,-520.43735752,0.00016043,2]
[326541416,1715100658426,-2000.0,0.0001605,2]
[326541417,1715100658439,-2000.0,0.0001606,2]
[326541420,1715100658461,-2000.0,0.0001607,2]
[326541422,1715100658473,-2000.0,0.0001608,2]
[326541425,1715100658502,-1000.0,0.00016084,2]
[326541427,1715100658519,-2000.0,0.0001609,2]
[326541429,1715100658530,-2000.0,0.000161,2]
[326541430,1715100658545,-3231.042812,0.0001611,2]
[326541431,1715100658556,-150.0,0.00016124,2]
[326541433,1715100658592,-155.95989426,0.0001617,2]
[326541435,1715100658621,-150.0,0.00016212,2]
[326541437,1715100658633,-523.05,0.00016212,2]
[326541439,1715100658655,-200.0,0.00016438,2]
[326541441,1715100658666,-155.24,0.00016438,2]
[326541443,1715100658679,-163.06,0.00016438,2]
[326541444,1715100658690,-2110.33734,0.0001655,2]
[326541445,1715100658701,-5945.54326208,0.00016602,2]
[326541446,1715100658711,-154.88575799,0.00016789,2]
[326541448,1715100658723,-156.41043642,0.00016845,2]
[326541449,1715100658733,-155.96026536,0.00016898,2]
[326541451,1715100658755,-155.49395369,0.00016898,2]
[326541452,1715100658770,-173.77436798,0.000169,2]
[326541453,1715100658783,-419.95,0.00016946,2]
[326541455,1715100658834,-150.0,0.00016946,2]
[326541457,1715100658845,-195.87309804,0.00016968,2]
[326541458,1715100658855,-3599.53,0.00016996,2]
[326541460,1715100658867,-1749.0834379,0.00017,2]
[326541462,1715100658880,-715.6243807,0.00017,2]
[326541464,1715100658894,-523.05,0.00017034,2]
[326541468,1715100658938,-166.11252061,0.00017038,2]
[326541469,1715100658955,-163.69417388,0.00017131,2]
[326541470,1715100658971,-167.18,0.00017137,2]
[326541472,1715100658985,-173.6,0.00017146,2]
[326541473,1715100659008,-155.77141963,0.00017244,2]
[326541475,1715100659029,-156.41043642,0.00017245,2]
[326541478,1715100659067,-100000.0,0.00017339,2]
[326541481,1715100659105,-189.08,0.0001746,2]
[326541482,1715100659116,-1000.0,0.00017546,2]
[326541483,1715100659137,-195.736738,0.00017592,2]
[326541484,1715100659148,-151.0,0.00017592,2]
[326541486,1715100659159,-151.0,0.00017592,2]
[326541488,1715100659176,-151.0,0.00017592,2]
[326541506,1715100659504,-151.0,0.00017592,2]
[326541507,1715100659532,-289.048825,0.00017592,2]
[326541509,1715100659542,-221.598562,0.00017592,2]
[326541511,1715100659587,-1480.936398,0.00017592,2]
[326541512,1715100659610,-1480.936398,0.00017592,2]
[326541513,1715100659621,-151.0,0.00017592,2]
[326541514,1715100659662,-151.0,0.00017592,2]
[326541515,1715100659689,-799.219346,0.00017592,2]
[326541516,1715100659722,-799.219346,0.00017592,2]
[326541517,1715100659733,-151.0,0.00017592,2]
[326541518,1715100659753,-185.123875,0.00017592,2]
[326541519,1715100659764,-151.0,0.00017592,2]
[326541520,1715100659775,-154.906632,0.00017592,2]
[326541521,1715100659786,-151.0,0.00017592,2]
[326541522,1715100659813,-153.500766,0.00017592,2]
[326541523,1715100659832,-151.0,0.00017592,2]
[326541524,1715100659845,-151.0,0.00017592,2]
[326541525,1715100659863,-151.0,0.00017592,2]
[326541526,1715100659874,-151.0,0.00017592,2]
[326541527,1715100659894,-151.0,0.00017592,2]
[326541528,1715100659905,-151.0,0.00017592,2]
[326541529,1715100659916,-151.0,0.00017592,2]
[326541530,1715100659969,-952.818647,0.00017592,2]
[326541531,1715100659987,-952.818647,0.00017592,2]
[326541532,1715100660078,-151.0,0.00017592,2]
[326541533,1715100660109,-151.0,0.00017592,2]
[326541534,1715100660155,-151.0,0.00017592,2]
[326541535,1715100660174,-151.0,0.00017592,2]
[326541536,1715100660185,-151.0,0.00017592,2]
[326541537,1715100660203,-151.0,0.00017592,2]
[326541538,1715100660225,-151.0,0.00017592,2]
[326541539,1715100660238,-151.0,0.00017592,2]
[326541540,1715100660248,-151.0,0.00017592,2]
[326541541,1715100660318,-240.261545,0.00017592,2]
[326541542,1715100660333,-151.0,0.00017592,2]
[326541543,1715100660343,-151.0,0.00017592,2]
[326541544,1715100660356,-151.0,0.00017592,2]
[326541545,1715100660368,-240.261545,0.00017592,2]
[326541546,1715100660381,-159.413091,0.00017592,2]
[326541547,1715100660395,-152.433424,0.00017592,2]
[326541548,1715100660407,-159.413091,0.00017592,2]
[326541549,1715100660419,-293.405925,0.00017592,2]
[326541550,1715100660433,-151.0,0.00017592,2]
[326541551,1715100660443,-151.0,0.00017592,2]
[326541552,1715100660460,-191.109869,0.00017592,2]
[326541553,1715100660520,-151.0,0.00017592,2]
[326541554,1715100660531,-152.375106,0.00017592,2]
[326541555,1715100660558,-119206.7613378,0.00017592,2]
[326541556,1715100660628,-520.43735752,0.00017614,2]
[326541557,1715100660640,-154.77704803,0.00017711,2]
[326541558,1715100660650,-214.0,0.0001773,2]
[326541559,1715100660693,-155.77141963,0.00017734,2]
[326541560,1715100660711,-154.77704803,0.00017758,2]
[326541561,1715100660744,-2110.33733,0.000178,2]
[326541562,1715100660762,-158.32485788,0.0001783,2]
[326541563,1715100660779,-5945.54326208,0.00017836,2]
[326541564,1715100660810,-337.3887668,0.00017868,2]
[326541565,1715100660848,-1033.2990518,0.00017868,2]
[326541566,1715100660860,-156.09733477,0.00017878,2]
[326541567,1715100660871,-152.753606,0.0001788,2]
[326541568,1715100660884,-154.066159,0.0001788,2]
[326541569,1715100660897,-155.961161,0.0001788,2]
[326541570,1715100660920,-155.137165,0.0001788,2]
[326541571,1715100660939,-24092.71173133,0.0001788,2]
[326541572,1715100661001,-24092.71173128,0.0001788,2]
[326541573,1715100661012,-24092.71173128,0.0001788,2]
[326541574,1715100661024,-24092.71173128,0.0001788,2]
[326541575,1715100661035,-4850.69804333,0.0001788,2]
[326541576,1715100661051,-4850.69804327,0.0001788,2]
[326541577,1715100661080,-4850.69804327,0.0001788,2]
[326541578,1715100661097,-4850.69804327,0.0001788,2]
[326541579,1715100661116,-155.95989426,0.00017922,2]
[326541580,1715100661126,-5906.0,0.00017992,2]
[326541581,1715100661154,-275.0,0.00017992,2]
[326541582,1715100661165,-154.33565,0.00017992,2]
[326541583,1715100661177,-153.67457,0.00017992,2]
[326541584,1715100661219,-151.0,0.00017992,2]
[326541585,1715100661232,-1395.818,0.00017992,2]
[326541586,1715100661248,-970.257,0.00017992,2]
[326541587,1715100661258,-2294.0,0.00017992,2]
[326541588,1715100661268,-2299.491,0.00017992,2]
[326541589,1715100661279,-191.0,0.00017992,2]
[326541590,1715100661336,-34529.213,0.00017992,2]
[326541591,1715100661392,-1055.0,0.00017992,2]
[326541592,1715100661411,-436.0,0.00017992,2]
[326541593,1715100661422,-807.0,0.00017992,2]
[326541594,1715100661440,-610.0,0.00017992,2]
[326541595,1715100661457,-164.0,0.00017992,2]
[326541596,1715100661471,-1788.0,0.00017992,2]
[326541597,1715100661484,-150.0,0.00017992,2]
[326541598,1715100661530,-421.0,0.00017992,2]
[326541599,1715100661585,-150.0,0.00017992,2]
[326541600,1715100661598,-1752.633,0.00017992,2]
[326541601,1715100661620,-1645.0,0.00017992,2]
[326541602,1715100661646,-1139.0,0.00017992,2]
[326541603,1715100661659,-444.0,0.00017992,2]
[326541604,1715100661692,-215.0,0.00017992,2]
[326541605,1715100661706,-3118.267,0.00017992,2]
[326541606,1715100661720,-1250.0,0.00018,3]
[326541607,1715100661753,-183.72,0.00018,2]
[326541608,1715100661764,-156.54295098,0.00018071,2]
[326541609,1715100661775,-156.41043642,0.00018091,2]
[326541610,1715100661788,-156.41043642,0.00018124,2]
[326541611,1715100661798,-154.77704803,0.00018135,2]
[326541612,1715100661831,-156.54295098,0.00018197,2]
[326541613,1715100661844,-154.88575799,0.00018232,2]
[326541614,1715100661858,-214.0,0.0001825,2]
[326541615,1715100661870,-4850.69804327,0.00018261,2]
[326541616,1715100661891,-24092.71173128,0.00018269,2]
[326541617,1715100661903,-162.88285759,0.00018321,2]
[326541618,1715100661914,-156.41043642,0.00018327,2]
[326541619,1715100661928,-154.77704803,0.0001839,2]
[326541620,1715100661940,-171.750627,0.000184,2]
[326541621,1715100661979,-360.01550888,0.00018431,2]
[326541622,1715100661990,-167.18,0.00018444,2]
[326541623,1715100662004,-156.54295098,0.00018481,2]
[326541624,1715100662018,-155.95989426,0.00018508,2]
[326541625,1715100662032,-154.77704803,0.00018616,2]
[326541626,1715100662061,-419.95,0.00018678,2]
[326541627,1715100662071,-165.65643103,0.00018694,2]
[326541628,1715100662082,-173.6,0.00018705,2]
[326541629,1715100662103,-153.92179106,0.00018733,2]
[326541630,1715100662137,-214.0,0.0001878,2]
[326541631,1715100662150,-150.0,0.00018892,2]
[326541632,1715100662170,-150.0,0.00018904,2]
[326541633,1715100662183,-156.41043642,0.00018906,2]
[326541634,1715100662197,-151.0,0.00018937,2]
[326541635,1715100662210,-431.767802,0.00018947,2]
[326541636,1715100662254,-181.822681,0.00018947,2]
[326541637,1715100662264,-253.176847,0.00018947,2]
[326541638,1715100662275,-176.908973,0.00018947,2]
[326541639,1715100662288,-4231.568208,0.00018947,2]
[326541640,1715100662315,-157.25242,0.00018947,2]
[326541641,1715100662325,-227.278351,0.00018947,2]
[326541642,1715100662339,-9619.221744,0.00018947,2]
[326541643,1715100662349,-216.634017,0.00018947,2]
[326541644,1715100662359,-223.697185,0.00018947,2]
[326541645,1715100662371,-5295.360972,0.00018947,2]
[326541646,1715100662390,-186.543043,0.00018947,2]
[326541647,1715100662400,-170.460251,0.00018947,2]
[326541648,1715100662417,-171.813185,0.00018947,2]
[326541649,1715100662462,-683.513246,0.00018947,2]
[326541650,1715100662477,-167.772889,0.00018947,2]
[326541651,1715100662487,-1277.683125,0.00018947,2]
[326541652,1715100662498,-1022.1465,0.00018947,2]
[326541653,1715100662526,-153.262893,0.00018947,2]
[326541654,1715100662556,-154.77704803,0.0001895,2]
[326541655,1715100662622,-3503.9406188,0.00018987,2]
[326541656,1715100662633,-18853.6623836,0.00018987,2]
[326541657,1715100662645,-23371.48920665,0.00019,5]
[326541658,1715100662661,-151.0,0.00019,2]
[326541659,1715100662673,-151.0,0.00019,2]
[326541660,1715100662720,-153.765333,0.00019,2]
[326541661,1715100662737,-2509.792196,0.00019,2]
[326541662,1715100662752,-155.0,0.00019,2]
[326541663,1715100662765,-195.87309804,0.00019003,2]
[326541664,1715100662791,-150.0,0.00019045,2]
[326541665,1715100662810,-2110.33733,0.0001905,2]
[326541666,1715100662873,-158.5740467,0.0001907,2]
[326541667,1715100662885,-5945.54326208,0.0001907,2]
[326541668,1715100662912,-156.41043642,0.00019104,2]
[326541669,1715100662923,-154.77704803,0.00019136,2]
[326541670,1715100662951,-154.77704803,0.00019152,2]
[326541671,1715100662964,-151.0,0.00019165,2]
[326541672,1715100662975,-192.057714,0.00019165,2]
[326541673,1715100662986,-151.0,0.00019168,2]
[326541674,1715100663004,-151.0,0.00019178,2]
[326541675,1715100663015,-500.0,0.00019178,2]
[326541676,1715100663029,-547.36344626,0.00019178,2]
[326541677,1715100663040,-500.0,0.00019178,2]
[326541678,1715100663060,-500.0,0.00019178,2]
[326541679,1715100663073,-500.0,0.00019178,2]
[326541680,1715100663092,-500.0,0.00019178,2]
[326541681,1715100663108,-509.06606363,0.00019178,2]
[326541682,1715100663120,-500.0,0.00019178,2]
[326541683,1715100663131,-500.0,0.00019178,2]
[326541684,1715100663144,-500.0,0.00019178,2]
[326541685,1715100663172,-500.0,0.00019178,2]
[326541686,1715100663183,-500.0,0.00019178,2]
[326541687,1715100663195,-500.0,0.00019178,2]
[326541688,1715100663207,-500.0,0.00019178,2]
[326541689,1715100663230,-500.0,0.00019178,2]
[326541690,1715100663243,-500.0,0.00019178,2]
[326541691,1715100663258,-500.0,0.00019178,2]
[326541692,1715100663291,-500.0,0.00019178,2]
[326541693,1715100663302,-500.0,0.00019178,2]
[326541694,1715100663327,-500.0,0.00019178,2]
[326541695,1715100663338,-565.81843403,0.00019178,2]
[326541696,1715100663349,-500.0,0.00019178,2]
[326541697,1715100663374,-500.0,0.00019178,2]
[326541698,1715100663387,-500.0,0.00019178,2]
[326541699,1715100663397,-500.0,0.00019178,2]
[326541700,1715100663416,-500.0,0.00019178,2]
[326541701,1715100663465,-500.0,0.00019178,2]
[326541702,1715100663538,-500.0,0.00019178,2]
[326541703,1715100663558,-500.0,0.00019178,2]
[326541704,1715100663590,-500.0,0.00019178,2]
[326541705,1715100663601,-500.0,0.00019178,2]
[326541706,1715100663612,-500.0,0.00019178,2]
[326541707,1715100663623,-500.0,0.00019178,2]
[326541708,1715100663649,-500.0,0.00019178,2]
[326541710,1715100663663,-500.0,0.00019178,2]
[326541713,1715100663689,-500.0,0.00019178,2]
[326541718,1715100663802,-500.0,0.00019178,2]
[326541720,1715100663814,-173.6783853,0.00019178,2]
[326541722,1715100663825,-500.0,0.00019178,2]
[326541724,1715100663838,-500.0,0.00019178,2]
[326541727,1715100663892,-500.0,0.00019178,2]
[326541729,1715100663904,-500.0,0.00019178,2]
[326541732,1715100663932,-500.0,0.00019178,2]
[326541734,1715100663945,-500.0,0.00019178,2]
[326541735,1715100663958,-500.0,0.00019178,2]
[326541737,1715100663980,-500.0,0.00019178,2]
[326541739,1715100664013,-227.65679876,0.00019178,2]
[326541740,1715100664023,-500.0,0.00019178,2]
[326541741,1715100664035,-500.0,0.00019178,2]
[326541743,1715100664073,-500.0,0.00019178,2]
[326541744,1715100664099,-500.0,0.00019178,2]
[326541746,1715100664110,-500.0,0.00019178,2]
[326541750,1715100664136,-500.0,0.00019178,2]
[326541753,1715100664168,-500.0,0.00019178,2]
[326541756,1715100664206,-500.0,0.00019178,2]
[326541759,1715100664244,-500.0,0.00019178,2]
[326541760,1715100664255,-500.0,0.00019178,2]
[326541761,1715100664267,-500.0,0.00019178,2]
[326541763,1715100664300,-500.0,0.00019178,2]
[326541764,1715100664316,-500.0,0.00019178,2]
[326541766,1715100664329,-500.0,0.00019178,2]
[326541767,1715100664342,-500.0,0.00019178,2]
[326541768,1715100664353,-500.0,0.00019178,2]
[326541770,1715100664365,-500.0,0.00019178,2]
[326541771,1715100664375,-500.0,0.00019178,2]
[326541775,1715100664417,-500.0,0.00019178,2]
[326541777,1715100664428,-500.0,0.00019178,2]
[326541779,1715100664439,-500.0,0.00019178,2]
[326541780,1715100664474,-500.0,0.00019178,2]
[326541781,1715100664485,-500.0,0.00019178,2]
[326541782,1715100664499,-350.0,0.00019178,2]
[326541783,1715100664511,-500.0,0.00019178,2]
[326541784,1715100664521,-500.0,0.00019178,2]
[326541786,1715100664532,-500.0,0.00019178,2]
[326541787,1715100664553,-500.0,0.00019178,2]
[326541789,1715100664570,-500.0,0.00019178,2]
[326541791,1715100664589,-500.0,0.00019178,2]
[326541793,1715100664608,-500.0,0.00019178,2]
[326541795,1715100664624,-500.0,0.00019178,2]
[326541797,1715100664639,-500.0,0.00019178,2]
[326541799,1715100664654,-492.36590627,0.00019178,2]
[326541801,1715100664668,-500.0,0.00019178,2]
[326541803,1715100664681,-500.0,0.00019178,2]
[326541807,1715100664751,-500.0,0.00019178,2]
[326541809,1715100664771,-500.0,0.00019178,2]
[326541812,1715100664790,-500.0,0.00019178,2]
[326541814,1715100664816,-500.0,0.00019178,2]
[326541816,1715100664836,-500.0,0.00019178,2]
[326541818,1715100664847,-500.0,0.00019178,2]
[326541820,1715100664865,-151.0,0.00019178,2]
[326541821,1715100664877,-151.0,0.00019178,2]
[326541823,1715100664888,-189.81167,0.00019178,2]
[326541824,1715100664898,-240.261545,0.00019178,2]
[326541825,1715100664911,-151.0,0.00019178,2]
[326541829,1715100664956,-151.0,0.00019178,2]
[326541832,1715100665000,-151.0,0.00019178,2]
[326541838,1715100665049,-240.261545,0.00019178,2]
[326541839,1715100665065,-159.413091,0.00019178,2]
[326541841,1715100665078,-159.413091,0.00019178,2]
[326541843,1715100665088,-176.636006,0.00019178,2]
[326541845,1715100665114,-151.0,0.00019178,2]
[326541846,1715100665131,-157.86,0.00019178,2]
[326541848,1715100665144,-426.12,0.00019178,2]
[326541851,1715100665169,-477.54,0.00019178,2]
[326541852,1715100665179,-151.0,0.00019178,2]
[326541854,1715100665211,-151.0,0.00019178,2]
[326541856,1715100665222,-200.719608,0.00019178,2]
[326541858,1715100665233,-156.69,0.00019178,2]
[326541859,1715100665245,-55000.0,0.00019178,2]
[326541861,1715100665256,-3424.89,0.00019178,2]
[326541863,1715100665270,-202.08750301,0.00019178,2]
[326541865,1715100665281,-181.822681,0.00019183,2]
[326541867,1715100665298,-253.176847,0.00019183,2]
[326541868,1715100665333,-431.767802,0.00019183,2]
[326541870,1715100665343,-4231.568208,0.00019183,2]
[326541872,1715100665360,-9619.221744,0.00019183,2]
[326541874,1715100665385,-5295.360972,0.00019183,2]
[326541875,1715100665404,-186.543043,0.00019183,2]
[326541876,1715100665414,-683.513246,0.00019183,2]
[326541881,1715100665472,-1022.1465,0.00019183,2]
[326541882,1715100665505,-520.43735752,0.00019186,2]
[326541885,1715100665539,-300.0,0.000192,2]
[326541886,1715100665551,-3876.01243216,0.000192,2]
[326541887,1715100665568,-1482.54,0.000192,2]
[326541889,1715100665586,-1446.8,0.000192,2]
[326541892,1715100665618,-1017.0,0.000192,2]
[326541894,1715100665629,-151.0,0.00019224,2]
[326541897,1715100665645,-151.0,0.00019234,2]
[326541898,1715100665656,-166.11252061,0.00019245,2]
[326541900,1715100665674,-176.908973,0.00019262,2]
[326541902,1715100665685,-167.772889,0.00019262,2]
[326541905,1715100665708,-214.0,0.0001931,2]
[326541907,1715100665719,-156.54295098,0.00019409,2]
[326541908,1715100665731,-431.767802,0.0001942,2]
[326541912,1715100665771,-253.176847,0.0001942,2]
[326541914,1715100665812,-181.822681,0.0001942,2]
[326541916,1715100665822,-4231.568208,0.0001942,2]
[326541918,1715100665834,-157.25242,0.0001942,2]
[326541920,1715100665845,-9619.221744,0.0001942,2]
[326541922,1715100665859,-5295.360972,0.0001942,2]
[326541924,1715100665882,-186.543043,0.0001942,2]
[326541926,1715100665896,-683.513246,0.0001942,2]
[326541929,1715100665911,-1022.1465,0.0001942,2]
[326541931,1715100665922,-158.5740467,0.00019428,2]
[326541933,1715100665962,-150.0,0.000195,2]
[326541936,1715100665978,-1500.0,0.000195,2]
[326541937,1715100665989,-1059.0,0.0001956,15]
[326541938,1715100666000,-741.0,0.0001956,15]
[326541941,1715100666014,-1059.0,0.0001957,15]
[326541943,1715100666030,-741.0,0.0001957,15]
[326541945,1715100666042,-176.908973,0.00019578,2]
[326541947,1715100666075,-167.772889,0.00019578,2]
[326541949,1715100666096,-1059.0,0.0001958,15]
[326541951,1715100666107,-741.0,0.0001958,15]
[326541954,1715100666133,-222.13,0.0001958,15]
[326541956,1715100666143,-192.797835,0.00019585,2]
[326541958,1715100666154,-166.11252061,0.00019588,2]
[326541961,1715100666184,-4850.69804327,0.00019627,2]
[326541963,1715100666209,-24092.71173128,0.00019636,2]
[326541965,1715100666225,-431.767802,0.00019657,2]
[326541967,1715100666243,-181.822681,0.00019657,2]
[326541970,1715100666254,-253.176847,0.00019657,2]
[326541972,1715100666265,-4231.568208,0.00019657,2]
[326541974,1715100666276,-9619.221744,0.00019657,2]
[326541975,1715100666290,-5295.360972,0.00019657,2]
[326541977,1715100666319,-186.543043,0.00019657,2]
[326541978,1715100666331,-683.513246,0.00019657,2]
[326541980,1715100666347,-1022.1465,0.00019657,2]
[326541981,1715100666357,-214.0,0.0001984,2]
[326541983,1715100666373,-150.0,0.0001989,2]
[326541984,1715100666384,-150.0,0.0001989,2]
[326541986,1715100666414,-150.0,0.0001989,2]
[326541989,1715100666462,-431.767802,0.00019894,2]
[326541991,1715100666472,-253.176847,0.00019894,2]
[326541992,1715100666483,-181.822681,0.00019894,2]
[326541993,1715100666495,-4231.568208,0.00019894,2]
[326541995,1715100666506,-157.25242,0.00019894,2]
[326541997,1715100666518,-9619.221744,0.00019894,2]
[326541998,1715100666528,-5295.360972,0.00019894,2]
[326542002,1715100666561,-186.543043,0.00019894,2]
[326542003,1715100666588,-683.513246,0.00019894,2]
[326542005,1715100666598,-1022.1465,0.00019894,2]
[326542007,1715100666609,-223.697185,0.00019894,2]
[326542014,1715100666688,-170.460251,0.00019894,2]
[326542016,1715100666700,-171.813185,0.00019894,2]
[326542018,1715100666711,-176.908973,0.00019894,2]
[326542020,1715100666724,-167.772889,0.00019894,2]
[326542022,1715100666737,-151.0,0.00019894,2]
[326542026,1715100666788,-151.0,0.00019894,2]
[326542027,1715100666799,-151.0,0.00019894,2]
[326542028,1715100666810,-151.0,0.00019894,2]
[326542030,1715100666821,-151.0,0.00019894,2]
[326542031,1715100666843,-151.0,0.00019894,2]
[326542035,1715100666879,-152.61286762,0.000199,2]
[326542037,1715100666901,-152.61286752,0.000199,2]
[326542038,1715100666911,-152.61286752,0.000199,2]
[326542039,1715100666921,-152.61286752,0.000199,2]
[326542041,1715100666940,-152.61286752,0.000199,2]
[326542043,1715100666954,-152.61286752,0.000199,2]
[326542044,1715100666964,-152.61286752,0.000199,2]
[326542047,1715100666980,-152.61286752,0.000199,2]
[326542049,1715100667023,-152.61286752,0.000199,2]
[326542051,1715100667037,-152.61286752,0.000199,2]
[326542056,1715100667099,-152.61286752,0.000199,2]
[326542058,1715100667112,-152.61286752,0.000199,2]
[326542060,1715100667123,-152.61286752,0.00019908,2]
[326542061,1715100667133,-155.0495687,0.0001997,2]
[326542063,1715100667149,-2774.5996542,0.00019986,2]
[326542066,1715100667172,-14929.2955621,0.00019986,2]
[326542067,1715100667185,-337.3887668,0.00019986,2]
[326542068,1715100667196,-818.2191149,0.00019986,2]
[326542069,1715100667210,-151.0,0.0001999,2]
[326542071,1715100667221,-151.0,0.0001999,2]
[326542072,1715100667240,-293.92674886,0.0002,2]
[326542074,1715100667251,-33107.49,0.0002,4]
[326542076,1715100667263,-138798.53274956,0.0002,2]
[326542078,1715100667275,-155.23123828,0.0002,2]
[326542080,1715100667286,-155.21894956,0.0002,2]
[326542081,1715100667297,-1273.78304217,0.0002,2]
[326542083,1715100667313,-342.0,0.0002,2]
[326542084,1715100667324,-397.41478994,0.0002,2]
[326542087,1715100667345,-155.64356276,0.0002,2]
[326542089,1715100667360,-155.46576905,0.0002,2]
[326542090,1715100667371,-358.19784561,0.0002,2]
[326542091,1715100667381,-489.20794399,0.0002,2]
[326542092,1715100667391,-151.887188,0.0002,2]
[326542094,1715100667408,-151.0,0.0002,2]
[326542096,1715100667420,-1769.36965514,0.0002,2]
[326542098,1715100667430,-161.495407,0.0002,2]
[326542100,1715100667441,-2000.0,0.0002,2]
[326542102,1715100667453,-151.0,0.0002,2]
[326542104,1715100667464,-2000.0,0.0002,2]
[326542106,1715100667475,-151.0,0.0002,2]
[326542108,1715100667487,-228.856507,0.0002,2]
[326542109,1715100667504,-151.0,0.0002,2]
[326542110,1715100667523,-1480.936398,0.0002,2]
[326542111,1715100667536,-1480.936398,0.0002,2]
[326542112,1715100667546,-151.0,0.0002,2]
[326542113,1715100667579,-151.0,0.0002,2]
[326542114,1715100667590,-799.219346,0.0002,2]
[326542115,1715100667624,-799.219346,0.0002,2]
[326542134,1715100667870,-249.604171,0.0002,2]
[326542136,1715100667883,-151.0,0.0002,2]
[326542138,1715100667895,-150.28848631,0.0002,2]
[326542139,1715100667909,-151.0,0.0002,2]
[326542140,1715100667920,-151.0,0.0002,2]
[326542142,1715100667931,-151.0,0.0002,2]
[326542145,1715100667943,-151.0,0.0002,2]
[326542148,1715100667977,-151.0,0.0002,2]
[326542150,1715100668001,-151.0,0.0002,2]
[326542152,1715100668012,-952.818647,0.0002,2]
[326542154,1715100668033,-952.818647,0.0002,2]
[326542155,1715100668044,-170.263891,0.0002,2]
[326542157,1715100668056,-1300.0,0.0002,3]
[326542160,1715100668109,-1500.0,0.0002,2]
[326542161,1715100668149,-405.306692,0.0002,2]
[326542163,1715100668163,-2000.0,0.0002001,2]
[326542164,1715100668176,-2000.0,0.0002001,2]
[326542165,1715100668186,-2000.0,0.0002002,2]
[326542167,1715100668222,-2000.0,0.0002002,2]
[326542169,1715100668234,-2000.0,0.0002003,2]
[326542171,1715100668247,-2000.0,0.0002003,2]
[326542173,1715100668257,-2000.0,0.0002004,2]
[326542174,1715100668268,-2000.0,0.0002004,2]
[326542176,1715100668287,-2000.0,0.0002005,2]
[326542178,1715100668321,-2000.0,0.0002005,2]
[326542179,1715100668332,-156.41043642,0.00020055,2]
[326542180,1715100668343,-3729.376167,0.0002006,2]
[326542181,1715100668357,-2000.0,0.0002006,2]
[326542183,1715100668368,-2820.695208,0.0002007,2]
[326542184,1715100668385,-158.57404672,0.00020278,2]
[326542186,1715100668418,-1017.0,0.000203,2]
[326542189,1715100668428,-5945.54326208,0.00020305,2]
[326542191,1715100668439,-165.30353314,0.00020306,2]
[326542193,1715100668449,-214.0,0.0002036,2]
[326542194,1715100668463,-1482.54,0.000204,2]
[326542196,1715100668474,-1446.8,0.000204,2]
[326542198,1715100668484,-152.61286752,0.00020492,2]
[326542201,1715100668519,-170.57,0.00020548,2]
[326542203,1715100668532,-150.0,0.00020548,2]
[326542205,1715100668547,-152.0,0.00020563,3]
[326542207,1715100668559,-156.41043642,0.00020634,2]
[326542209,1715100668586,-154.77704803,0.00020694,2]
[326542211,1715100668597,-520.43735752,0.00020757,2]
[326542212,1715100668615,-155.77141963,0.00020772,2]
[326542214,1715100668626,-202.0,0.0002089,2]
[326542215,1715100668640,-214.0,0.0002089,2]
[326542216,1715100668652,-154.77704803,0.00020965,2]